bitfinex/quotes_SOLUSD_20241021
["timestamp","ask_amount","ask_price","bid_price","bid_amount"]
[1729495064094,23.776884,169.38,169.36,0.1]
[1729495064269,5.9045,169.36,169.35,0.1]
[1729495064476,23.776884,169.34,169.33,0.1]
[1729495064787,23.776884,169.34,169.33,0.2]
[1729495065308,29.93489245,169.34,169.33,0.2]
[1729495065477,35.84009245,169.34,169.33,0.1]
[1729495065678,35.84009245,169.34,169.32,0.1]
[1729495066503,35.84009245,169.34,169.3,15.7873]
[1729495066504,29.93489245,169.34,169.3,0.2]
[1729495066675,5.9063,169.31,169.3,0.2]
[1729495067015,49.683184,169.31,169.3,0.1]
[1729495068487,29.683484,169.3,169.29,0.1]
[1729495068682,23.776884,169.3,169.26,0.1]
[1729495068990,23.776884,169.29,169.26,0.1]
[1729495069189,5.908,169.26,169.25,15.4357]
[1729495072801,5.908,169.26,169.25,0.1]
[1729495073002,23.776884,169.29,169.24,0.6983497]
[1729495073003,29.685284,169.25,169.24,0.7983497]
[1729495073793,29.685284,169.25,169.24,0.5983497]
[1729495074209,29.685284,169.25,169.24,0.6983497]
[1729495075699,35.84085187,169.25,169.24,0.6983497]
[1729495076008,35.84085187,169.25,169.24,0.5983497]
[1729495076402,55.84085187,169.25,169.24,0.5983497]
[1729495077925,6.15556787,169.25,169.24,0.6983497]
[1729495078103,12.06396787,169.25,169.24,0.5983497]
[1729495079298,55.84085187,169.25,169.24,0.5983497]
[1729495080690,55.84085187,169.25,169.24,0.7983497]
[1729495080691,6.15556787,169.25,169.24,0.7983497]
[1729495082992,6.15556787,169.25,169.24,0.6983497]
[1729495083193,5.9084,169.25,169.24,0.6983497]
[1729495083511,55.84080066,169.25,169.24,0.5983497]
[1729495083895,29.93240066,169.25,169.24,0.6983497]
[1729495084101,35.84080066,169.25,169.24,0.6983497]
[1729495084415,35.84080066,169.25,169.24,0.5983497]
[1729495085917,35.84080066,169.25,169.24,0.6983497]
[1729495086711,35.84080066,169.25,169.24,0.7983497]
[1729495089903,35.84080066,169.25,169.24,0.6983497]
[1729495090104,35.84080066,169.25,169.24,0.7983497]
[1729495090816,6.15551666,169.25,169.24,0.7983497]
[1729495093034,6.15551666,169.25,169.24,6.8892497]
[1729495093234,1.02768769,169.3,169.29,0.1]
[1729495093406,14.7614,169.37,169.24,6.7892497]
[1729495093407,14.7614,169.37,169.32,0.1]
[1729495093725,1.02688443,169.35,169.32,0.1]
[1729495093906,6.15276297,169.36,169.32,0.1]
[1729495094105,5.9056,169.33,169.32,0.1]
[1729495094637,5.9059,169.32,169.31,0.2]
[1729495094824,29.682784,169.32,169.31,0.2]
[1729495095325,29.682784,169.32,169.31,0.1]
[1729495095501,29.682784,169.32,169.31,0.2]
[1729495096729,23.776884,169.32,169.31,0.2]
[1729495099713,23.776884,169.31,169.3,0.1]
[1729495099910,29.683484,169.3,169.29,0.1]
[1729495101646,29.683484,169.3,169.29,0.2]
[1729495103930,29.683484,169.3,169.29,0.1]
[1729495104122,29.683884,169.29,169.28,0.1]
[1729495105317,29.684184,169.28,169.27,0.1]
[1729495105647,29.684184,169.28,169.27,0.2]
[1729495106914,23.776884,169.28,169.27,0.2]
[1729495107120,29.684184,169.28,169.27,0.2]
[1729495110034,12.0593697,169.3,169.29,0.2]
[1729495110333,6.1527697,169.3,169.29,0.2]
[1729495111621,29.9296537,169.3,169.29,0.2]
[1729495111841,6.1527697,169.3,169.29,0.2]
[1729495123722,12.0593697,169.3,169.29,0.2]
[1729495125561,6.1527697,169.3,169.29,0.2]
[1729495126222,35.8362537,169.3,169.29,0.2]
[1729495126423,6.1527697,169.3,169.29,28.6073]
[1729495126619,1.02680686,169.38,169.37,0.1]
[1729495126839,5.9038,169.38,169.37,0.1]
[1729495127235,12.05037182,169.38,169.37,0.1]
[1729495127452,6.14657182,169.38,169.31,0.2]
[1729495127623,14.7614,169.36,169.28,0.2]
[1729495127824,23.776884,169.29,169.28,0.1]
[1729495128037,23.776884,169.29,169.27,0.1]
[1729495128038,29.684184,169.28,169.27,0.1]
[1729495128440,5.9069,169.3,169.29,0.1]
[1729495128629,23.776884,169.31,169.3,0.2]
[1729495132933,23.776884,169.31,169.3,0.1]
[1729495133152,29.683484,169.31,169.29,0.2]
[1729495133653,29.683484,169.31,169.3,0.1]
[1729495134329,29.683484,169.31,169.29,0.1]
[1729495135344,23.776884,169.29,169.28,0.1]
[1729495135630,23.776884,169.29,169.27,0.1]
[1729495135831,23.776884,169.29,169.26,0.1]
[1729495135832,5.9075,169.28,169.26,0.1]
[1729495136030,23.776884,169.27,169.26,0.2]
[1729495137432,29.92256132,169.27,169.26,0.2]
[1729495137847,6.14567732,169.27,169.26,0.2]
[1729495140563,5.906,169.32,169.26,6.108]
[1729495140763,5.906,169.32,169.31,0.2]
[1729495141055,27.3449,169.37,169.32,0.1]
[1729495141056,5.9056,169.34,169.32,0.1]
[1729495141266,25.9056,169.33,169.32,0.1]
[1729495142862,49.682484,169.33,169.32,0.1]
[1729495143858,12.05020892,169.34,169.32,0.2]
[1729495144050,6.14500892,169.34,169.33,0.2]
[1729495145137,5.9038,169.38,169.37,0.1]
[1729495145334,5.9038,169.38,169.37,0.2]
[1729495145539,12.05172618,169.38,169.37,0.2]
[1729495145755,6.14792618,169.38,169.37,0.2]
[1729495146958,6.14792618,169.38,169.37,28.034]
[1729495147462,6.14792618,169.38,169.37,28.134]
[1729495147668,6.14792618,169.38,169.37,28.034]
[1729495147844,6.14792618,169.38,169.37,28.134]
[1729495148463,1.02614859,169.52,169.37,28.134]
[1729495148464,5.9004,169.48,169.47,0.1]
[1729495148670,5.9004,169.48,169.47,0.2]
[1729495148854,12.04831386,169.48,169.47,0.2]
[1729495149739,35.82519786,169.48,169.47,0.2]
[1729495150068,6.14791386,169.48,169.47,0.2]
[1729495150684,5.8987,169.53,169.52,0.1]
[1729495150850,14.7427,169.58,169.52,0.1]
[1729495151051,4.3244916,169.57,169.52,0.1]
[1729495151363,14.7427,169.58,169.52,0.1]
[1729495151541,5.8986,169.53,169.52,0.1]
[1729495151746,5.898,169.55,169.54,0.2]
[1729495152071,5.898,169.55,169.54,0.1]
[1729495153063,29.674884,169.55,169.54,0.2]
[1729495153245,29.674884,169.55,169.54,0.1]
[1729495153645,29.674884,169.55,169.53,0.2]
[1729495153852,23.776884,169.54,169.53,0.2]
[1729495154248,23.776884,169.52,169.51,0.1]
[1729495154568,29.675884,169.52,169.51,0.2]
[1729495155146,5.899,169.52,169.51,0.2]
[1729495155880,5.899,169.52,169.45,0.1]
[1729495155881,5.8986,169.53,169.52,0.2]
[1729495157264,29.675484,169.53,169.52,0.2]
[1729495160551,29.675484,169.53,169.52,0.1]
[1729495160746,5.8993,169.51,169.5,0.2]
[1729495160961,29.676184,169.51,169.5,0.1]
[1729495161969,29.676184,169.51,169.5,0.2]
[1729495162173,35.82571169,169.51,169.5,0.2]
[1729495162873,35.82571169,169.51,169.5,0.1]
[1729495163763,29.676584,169.5,169.49,0.2]
[1729495166781,29.676884,169.49,169.48,0.2]
[1729495167976,29.677284,169.48,169.47,0.2]
[1729495168383,29.677584,169.47,169.46,0.2]
[1729495169380,29.677584,169.47,169.46,0.1]
[1729495169882,29.677584,169.47,169.46,0.2]
[1729495170271,29.677584,169.47,169.42,5.9023]
[1729495170272,49.676584,169.5,169.49,0.1]
[1729495170677,25.8997,169.5,169.49,0.1]
[1729495170871,5.8997,169.5,169.49,0.2]
[1729495172774,29.676584,169.5,169.49,0.2]
[1729495173883,5.8997,169.5,169.49,0.2]
[1729495174258,6.14952769,169.51,169.5,0.2]
[1729495175172,5.8985,169.54,169.53,0.1]
[1729495175382,12.04887296,169.54,169.53,0.1]
[1729495176272,35.82575696,169.54,169.53,0.1]
[1729495176661,12.04887296,169.54,169.53,0.2]
[1729495180265,6.15037296,169.54,169.53,0.2]
[1729495180578,14.7404,169.61,169.53,0.2]
[1729495180579,5.8973,169.57,169.53,6.7554]
[1729495180783,5.8973,169.57,169.56,0.1]
[1729495181084,12.04853859,169.57,169.56,0.2]
[1729495181266,6.15123859,169.57,169.56,0.2]
[1729495182669,12.04843859,169.57,169.56,0.2]
[1729495183861,6.15123859,169.57,169.56,0.2]
[1729495186390,5.8969,169.58,169.57,0.1]
[1729495186703,12.03690938,169.58,169.57,0.1]
[1729495187085,12.03690938,169.58,169.57,0.2]
[1729495196784,35.81379338,169.58,169.57,0.2]
[1729495200410,12.03690938,169.58,169.57,0.2]
[1729495204692,35.81379338,169.58,169.57,0.2]
[1729495204900,23.776884,169.57,169.55,0.2]
[1729495205208,23.776884,169.57,169.54,0.1]
[1729495205405,29.674784,169.55,169.54,0.1]
[1729495205606,23.776884,169.53,169.51,0.1]
[1729495205917,5.8997,169.5,169.49,0.2]
[1729495206093,29.676184,169.51,169.5,0.2]
[1729495206994,29.676184,169.51,169.5,0.1]
[1729495207197,29.676184,169.51,169.5,0.2]
[1729495209615,5.8993,169.51,169.5,0.2]
[1729495209999,55.80607347,169.55,169.54,0.1]
[1729495210409,35.80607347,169.55,169.54,0.2]
[1729495210595,12.02918947,169.55,169.54,0.2]
[1729495211909,35.80607347,169.55,169.54,0.2]
[1729495212109,12.02918947,169.55,169.54,0.2]
[1729495212421,6.13128947,169.55,169.54,0.2]
[1729495212603,14.7375,169.64,169.6,0.1]
[1729495212814,5.8958,169.61,169.6,0.1]
[1729495213016,7.3449,169.67,169.59,0.1]
[1729495213322,7.3449,169.67,169.58,0.1]
[1729495213323,34.97283557,169.65,169.55,0.2]
[1729495213505,5.8976,169.56,169.55,0.2]
[1729495213901,29.674484,169.56,169.55,0.2]
[1729495214400,5.8976,169.56,169.55,0.2]
[1729495214900,29.674484,169.56,169.55,0.2]
[1729495215109,29.674784,169.55,169.54,0.2]
[1729495216321,29.674784,169.55,169.52,0.1]
[1729495216322,23.776884,169.55,169.52,0.1]
[1729495216525,29.675484,169.53,169.52,0.1]
[1729495216905,29.675484,169.53,169.52,0.2]
[1729495216906,5.8986,169.53,169.52,0.2]
[1729495218507,29.675484,169.53,169.52,0.2]
[1729495219807,29.675884,169.52,169.51,0.2]
[1729495220218,23.776884,169.52,169.5,0.2]
[1729495220533,7.3449,169.6,169.5,0.2]
[1729495220534,29.676184,169.51,169.5,0.2]
[1729495221411,5.8983,169.54,169.53,0.2]
[1729495221619,29.675184,169.54,169.53,0.2]
[1729495222400,5.8983,169.54,169.53,0.2]
[1729495224026,12.03754235,169.54,169.53,0.2]
[1729495225707,6.13924235,169.54,169.53,0.2]
[1729495227531,1.02570278,169.6,169.59,0.1]
[1729495227717,50.69878678,169.6,169.59,0.1]
[1729495228237,55.81165784,169.6,169.59,0.1]
[1729495229205,35.81165784,169.6,169.59,0.2]
[1729495234029,35.81165784,169.6,169.59,0.1]
[1729495234922,29.91545784,169.6,169.59,0.2]
[1729495235129,35.81165784,169.6,169.59,0.1]
[1729495235439,29.91545784,169.6,169.59,0.1]
[1729495235639,35.81165784,169.6,169.59,0.2]
[1729495236647,35.81165784,169.6,169.59,0.1]
[1729495236937,35.81165784,169.6,169.59,0.2]
[1729495238817,35.81165784,169.6,169.59,0.1]
[1729495239017,29.91545784,169.6,169.58,0.2]
[1729495239237,29.673384,169.59,169.58,0.2]
[1729495240539,5.8983,169.54,169.53,11.22306665]
[1729495241354,12.03348668,169.54,169.53,11.22306665]
[1729495242637,6.13518668,169.54,169.53,11.22306665]
[1729495242841,5.8977,169.56,169.53,11.22306665]
[1729495243046,6.13278393,169.56,169.53,11.22306665]
[1729495243550,12.03038393,169.56,169.53,11.22306665]
[1729495243725,5.898,169.55,169.53,11.22306665]
[1729495247762,5.8983,169.54,169.53,11.22306665]
[1729495252365,12.03048393,169.56,169.53,11.22306665]
[1729495253374,6.13278393,169.56,169.53,11.22306665]
[1729495253539,6.13278393,169.56,169.54,14.7455]
[1729495254650,6.13278393,169.56,169.53,11.22306665]
[1729495259869,6.13278393,169.56,169.5,6.3827]
[1729495259870,5.8993,169.51,169.5,6.3827]
[1729495260173,5.8986,169.54,169.5,6.3827]
[1729495260551,12.03597007,169.54,169.5,6.3827]
[1729495261270,6.13737007,169.54,169.5,6.3827]
[1729495261467,6.13737007,169.54,169.5,12.2822]
[1729495265362,14.7413,169.6,169.5,6.4827]
[1729495265554,12.03728011,169.56,169.51,5.8992]
[1729495265953,5.8976,169.56,169.51,5.8992]
[1729495266165,12.03446556,169.56,169.51,5.8992]
[1729495266552,6.13686556,169.56,169.55,5.8979]
[1729495266955,5.8959,169.61,169.55,5.8979]
[1729495267159,6.13281905,169.6,169.55,5.8979]
[1729495267359,5.8965,169.59,169.53,20.7451]
[1729495267560,5.897,169.58,169.53,20.6451]
[1729495268867,23.776884,169.59,169.52,16.036]
[1729495269056,23.776884,169.57,169.52,16.036]
[1729495269463,5.8981,169.55,169.52,16.036]
[1729495272273,5.8983,169.54,169.5,6.3827]
[1729495278756,6.11155259,169.55,169.5,21.2311]
[1729495278970,43.776884,169.6,169.52,5.8989]
[1729495279166,6.11389928,169.57,169.52,5.8989]
[1729495279357,5.8972,169.58,169.52,5.8989]
[1729495279677,6.1135954,169.57,169.54,5.898]
[1729495279875,6.1135954,169.57,169.53,20.6449]
[1729495281956,5.8969,169.58,169.53,20.6449]
[1729495282878,12.0099769,169.59,169.53,20.6449]
[1729495283268,6.1133769,169.59,169.53,14.7466]
[1729495283466,5.8978,169.56,169.5,27.0314]
[1729495283664,5.8978,169.56,169.51,5.8993]
[1729495285879,23.776884,169.58,169.5,21.3318]
[1729495286180,5.8974,169.57,169.52,5.8989]
[1729495288790,23.776884,169.58,169.5,6.3827]
[1729495288981,5.8972,169.57,169.5,6.3827]
[1729495289288,5.8982,169.55,169.5,6.3827]
[1729495291784,5.8972,169.57,169.5,6.3827]
[1729495291990,5.8972,169.58,169.52,5.8989]
[1729495292568,6.11000188,169.57,169.52,5.8989]
[1729495292769,12.00730188,169.57,169.52,5.8989]
[1729495293197,6.11000188,169.57,169.52,5.899]
[1729495293394,6.11000188,169.57,169.53,5.8984]
[1729495293569,6.11000188,169.57,169.54,15.38]
[1729495293883,6.11000188,169.57,169.54,15.48]
[1729495294472,6.11000188,169.57,169.55,20.6424]
[1729495297890,6.11000188,169.57,169.55,14.7448]
[1729495298594,6.11000188,169.57,169.56,5.8976]
[1729495298795,23.776884,169.64,169.56,5.8976]
[1729495299675,5.8958,169.61,169.56,5.8976]
[1729495302607,12.00683423,169.63,169.57,5.8972]
[1729495306286,5.8955,169.62,169.57,5.8972]
[1729495309605,5.8955,169.62,169.58,0.1]
[1729495309783,5.8955,169.62,169.57,5.9972]
[1729495309985,6.10198141,169.61,169.57,5.9972]
[1729495311688,11.99798141,169.61,169.56,21.2308]
[1729495311899,6.10198141,169.61,169.56,21.1308]
[1729495312109,5.8962,169.6,169.56,6.3868]
[1729495312408,5.8969,169.58,169.54,15.28]
[1729495314507,23.776884,169.6,169.54,15.28]
[1729495314699,5.8967,169.59,169.54,21.1783]
[1729495317207,5.8967,169.59,169.54,5.8983]
[1729495317393,5.8967,169.59,169.53,5.8986]
[1729495317710,5.8977,169.56,169.52,20.7754]
[1729495317907,5.8981,169.55,169.5,15.3297]
[1729495318212,5.8981,169.55,169.5,15.4297]
[1729495318605,5.8981,169.55,169.5,21.3292]
[1729495319393,35.831284,169.6,169.5,15.5297]
[1729495319594,5.8973,169.57,169.51,5.899]
[1729495320296,35.831284,169.6,169.5,30.2784]
[1729495320297,11.99394821,169.56,169.5,36.078]
[1729495321400,11.99394821,169.56,169.5,35.978]
[1729495324810,6.09634821,169.56,169.53,5.8986]
[1729495325011,6.09634821,169.56,169.54,5.8982]
[1729495325218,26.7909,169.65,169.54,5.8982]
[1729495325514,6.08220195,169.59,169.54,5.8982]
[1729495325714,5.8966,169.59,169.54,5.8982]
[1729495326010,11.98089413,169.59,169.54,5.8982]
[1729495326215,5.8969,169.58,169.53,14.7465]
[1729495327889,5.8969,169.58,169.5,15.4297]
[1729495327890,5.8975,169.57,169.5,30.1789]
[1729495328219,6.08429413,169.59,169.5,30.1789]
[1729495328220,5.8976,169.56,169.51,5.8993]
[1729495335546,6.08429413,169.59,169.56,14.7439]
[1729495336748,6.08429413,169.59,169.57,5.897]
[1729495336929,6.08429413,169.59,169.56,14.7439]
[1729495338124,6.08429413,169.59,169.56,20.6415]
[1729495342538,6.08429413,169.59,169.55,6.4384]
[1729495342741,6.08429413,169.59,169.55,12.3362]
[1729495343737,6.08429413,169.59,169.55,6.4384]
[1729495343738,11.98109413,169.59,169.55,6.4384]
[1729495343949,6.08429413,169.59,169.53,5.8983]
[1729495344122,5.8969,169.58,169.52,20.6457]
[1729495344936,23.776884,169.58,169.51,6.223]
[1729495345131,6.08793033,169.57,169.51,6.223]
[1729495345335,5.8977,169.56,169.51,6.223]
[1729495345837,5.8977,169.56,169.51,12.1222]
[1729495349349,6.08793033,169.57,169.53,5.8984]
[1729495357648,6.08793033,169.57,169.52,14.7472]
[1729495358450,5.8976,169.56,169.52,14.7472]
[1729495370865,5.8976,169.56,169.51,12.122]
[1729495370866,5.8979,169.55,169.51,6.223]
[1729495371068,5.8979,169.55,169.47,0.1]
[1729495371069,23.776884,169.56,169.47,6.4981]
[1729495371273,5.8995,169.51,169.47,6.4981]
[1729495371656,23.776884,169.53,169.45,5.9013]
[1729495372174,5.8997,169.5,169.44,20.6558]
[1729495372766,23.776884,169.53,169.44,14.7541]
[1729495373585,30.0,169.47,169.44,14.7541]
[1729495373948,30.0,169.47,169.43,12.4002]
[1729495374174,35.9007,169.47,169.42,21.8989]
[1729495376255,30.0,169.47,169.43,5.9018]
[1729495377656,30.0,169.47,169.44,5.9017]
[1729495378066,30.0,169.47,169.45,14.7534]
[1729495380380,30.0,169.47,169.46,5.901]
[1729495382783,30.0,169.47,169.42,16.1965]
[1729495382979,30.0,169.47,169.42,16.0965]
[1729495383176,30.0,169.47,169.42,16.1965]
[1729495383394,30.0,169.47,169.43,20.6574]
[1729495384288,30.0,169.47,169.43,14.7553]
[1729495384491,30.0,169.47,169.44,5.9017]
[1729495389690,30.0,169.47,169.43,0.1]
[1729495389870,30.0,169.47,169.46,5.901]
[1729495391078,6.09365083,169.52,169.48,5.9002]
[1729495393373,5.8976,169.56,169.5,5.8996]
[1729495393595,30.0,169.51,169.5,5.8996]
[1729495395580,11.98575953,169.57,169.49,0.1]
[1729495395787,11.98575953,169.57,169.51,5.8992]
[1729495401481,11.98575953,169.57,169.49,0.1]
[1729495401789,11.98575953,169.57,169.51,20.6473]
[1729495404687,6.08845953,169.57,169.51,6.6523]
[1729495404990,16.45775576,169.65,169.51,6.8523]
[1729495405186,16.45775576,169.65,169.52,5.8987]
[1729495405399,5.8972,169.57,169.52,5.8987]
[1729495405917,11.98287532,169.57,169.52,5.8987]
[1729495406308,6.08567532,169.57,169.53,5.8985]
[1729495410306,6.08567532,169.57,169.54,5.8979]
[1729495412491,6.08567532,169.57,169.54,14.7457]
[1729495412697,6.08567532,169.57,169.54,36.0698]
[1729495413017,5.8962,169.6,169.54,36.0698]
[1729495413196,11.98245379,169.6,169.54,36.0698]
[1729495413919,11.98245379,169.6,169.55,5.8979]
[1729495414598,6.08625379,169.6,169.56,5.8974]
[1729495421600,6.08625379,169.6,169.54,15.4261]
[1729495422121,5.8969,169.58,169.54,15.4261]
[1729495423407,11.9725157,169.58,169.54,15.4261]
[1729495425309,6.0756157,169.58,169.54,21.324]
[1729495426403,6.0756157,169.58,169.56,5.8973]
[1729495426623,6.0756157,169.58,169.55,0.1]
[1729495427004,6.0756157,169.58,169.54,15.5261]
[1729495427609,6.0756157,169.58,169.56,20.6412]
[1729495428810,6.0756157,169.58,169.56,14.7436]
[1729495431726,6.0756157,169.58,169.55,0.1]
[1729495432230,6.0756157,169.58,169.55,5.9978]
[1729495432436,6.0756157,169.58,169.56,5.8976]
[1729495432631,6.0756157,169.58,169.56,20.6412]
[1729495433625,6.0756157,169.58,169.54,15.5261]
[1729495434220,6.0756157,169.58,169.55,5.8978]
[1729495435633,6.0756157,169.58,169.55,0.1]
[1729495435837,6.0756157,169.58,169.55,5.9976]
[1729495438119,6.0756157,169.58,169.54,15.4261]
[1729495438120,5.8974,169.57,169.54,15.4261]
[1729495438323,6.0756157,169.58,169.54,15.4261]
[1729495439735,6.0756157,169.58,169.54,21.3243]
[1729495442743,6.0756157,169.58,169.55,5.8978]
[1729495452733,6.0756157,169.58,169.51,6.6523]
[1729495453140,5.8976,169.56,169.51,6.6523]
[1729495453761,6.07355429,169.55,169.51,6.6523]
[1729495453928,36.07355429,169.55,169.51,6.6523]
[1729495454250,30.0,169.55,169.51,6.7523]
[1729495454447,30.0,169.55,169.52,5.8988]
[1729495454950,11.9700343,169.57,169.52,5.8988]
[1729495455931,10.45463395,169.68,169.67,51.269584]
[1729495456249,0.1,169.78,169.7,14.731]
[1729495456427,0.1,169.81,169.68,0.1]
[1729495456624,0.1,169.81,169.72,5.892]
[1729495456850,0.5983497,169.83,169.73,1.17787259]
[1729495457027,0.5983497,169.83,169.67,15.89088403]
[1729495457028,0.5983497,169.83,169.76,5.8904]
[1729495457236,0.5983497,169.83,169.76,1.17769427]
[1729495457453,0.5983497,169.83,169.77,1.17751385]
[1729495457761,0.5983497,169.83,169.74,0.1]
[1729495457932,0.6983497,169.83,169.73,0.1]
[1729495458126,0.5983497,169.83,169.73,0.1]
[1729495458465,0.1,169.81,169.69,16.69287202]
[1729495458653,0.1,169.81,169.7,1.1777117]
[1729495459344,0.1,169.81,169.76,5.8904]
[1729495459854,0.1,169.79,169.71,6.4764]
[1729495460047,0.1,169.79,169.74,5.8911]
[1729495462633,0.1,169.8,169.74,5.8911]
[1729495462946,0.1,169.79,169.74,5.8911]
[1729495463452,0.1,169.8,169.74,5.8911]
[1729495463631,0.1,169.79,169.74,5.8911]
[1729495464652,0.1,169.79,169.75,5.8909]
[1729495467055,0.1,169.79,169.76,5.8905]
[1729495470638,0.1,169.79,169.74,20.6195]
[1729495470870,0.1,169.78,169.75,5.891]
[1729495471763,0.1,169.79,169.75,5.891]
[1729495471961,0.1,169.78,169.75,5.891]
[1729495474798,0.1,169.79,169.75,5.891]
[1729495474977,0.1,169.78,169.75,5.891]
[1729495475766,0.1,169.79,169.75,5.891]
[1729495475967,0.1,169.78,169.75,5.891]
[1729495476171,0.1,169.79,169.75,5.891]
[1729495476382,0.1,169.78,169.75,5.891]
[1729495480269,0.1,169.78,169.76,5.8904]
[1729495484502,0.1,169.79,169.76,5.8904]
[1729495484683,0.1,169.78,169.76,5.8904]
[1729495485101,0.1,169.78,169.71,7.65420047]
[1729495485310,0.1,169.78,169.76,5.8906]
[1729495488094,0.1,169.79,169.76,5.8906]
[1729495488276,0.1,169.78,169.76,5.8906]
[1729495489796,0.1,169.78,169.75,14.7272]
[1729495490976,0.1,169.78,169.75,20.6181]
[1729495494483,0.1,169.78,169.75,14.7272]
[1729495494688,0.1,169.79,169.76,5.8906]
[1729495494866,0.1,169.79,169.72,16.6458]
[1729495495073,0.1,169.79,169.76,5.8903]
[1729495497196,0.1,169.8,169.76,5.8903]
[1729495497495,0.1,169.79,169.76,5.8903]
[1729495498498,0.1,169.78,169.76,5.8903]
[1729495499274,0.1,169.78,169.74,20.6194]
[1729495499594,0.1,169.76,169.72,16.6458]
[1729495499796,0.1,169.76,169.74,14.7282]
[1729495500299,0.1,169.76,169.74,20.6193]
[1729495502797,0.1,169.77,169.74,20.6193]
[1729495503095,0.1,169.76,169.74,20.6193]
[1729495503294,0.1,169.77,169.74,20.6193]
[1729495503519,0.1,169.78,169.74,20.6193]
[1729495504600,0.1,169.76,169.74,20.6193]
[1729495505697,0.1,169.8,169.75,1.17788061]
[1729495505884,0.1,169.8,169.76,20.6172]
[1729495506192,0.1,169.8,169.76,14.7266]
[1729495506384,0.1,169.8,169.77,5.8902]
[1729495506587,0.1,169.78,169.77,5.8902]
[1729495507198,0.1,169.79,169.77,5.8902]
[1729495507395,6.14821488,169.81,169.79,5.8896]
[1729495507592,0.1,169.81,169.79,5.8896]
[1729495507891,0.1,169.8,169.76,5.8905]
[1729495511402,6.0885,169.82,169.76,5.8905]
[1729495511595,0.1,169.8,169.76,5.8905]
[1729495512704,0.1,169.8,169.77,14.7254]
[1729495513006,0.1,169.8,169.75,1.17774736]
[1729495513211,0.1,169.78,169.73,20.6203]
[1729495513385,5.8896,169.79,169.73,20.6203]
[1729495513386,0.1,169.77,169.73,20.6203]
[1729495513585,0.1,169.77,169.74,5.8913]
[1729495514699,0.1,169.78,169.72,16.6458]
[1729495514905,0.1,169.78,169.75,5.8908]
[1729495515289,0.1,169.78,169.74,15.90599091]
[1729495515290,0.1,169.79,169.74,1.17779091]
[1729495515496,0.1,169.8,169.75,14.7274]
[1729495515701,0.1,169.8,169.77,5.89]
[1729495518614,0.1,169.79,169.77,5.89]
[1729495520205,0.1,169.8,169.77,5.89]
[1729495520624,0.1,169.79,169.77,5.89]
[1729495525719,0.1,169.79,169.76,20.617]
[1729495528115,0.1,169.8,169.76,20.617]
[1729495528301,5.889,169.81,169.77,1.47379289]
[1729495528302,0.1,169.79,169.77,1.47379289]
[1729495528611,0.1,169.79,169.78,1.47379289]
[1729495529411,0.1,169.79,169.76,20.617]
[1729495529619,0.1,169.79,169.77,1.47378702]
[1729495529818,0.1,169.79,169.78,1.47378702]
[1729495534027,0.1,169.8,169.78,1.47378702]
[1729495534229,0.1,169.8,169.79,1.47378702]
[1729495534913,5.9892,169.8,169.79,1.47378702]
[1729495535409,29.866084,169.8,169.79,1.47378702]
[1729495535727,0.1,169.76,169.73,5.8914]
[1729495535924,0.1,169.75,169.74,1.47398852]
[1729495537008,0.1,169.75,169.74,1.4740527]